fUST/lending_fUST_20250623
["ID","MTS","AMOUNT","RATE_DAILY","PERIOD"]
[367099750,1750657843583,-460.0,0.00021917,2]
[367099751,1750657843592,-460.0,0.00021917,2]
[367099752,1750657843602,-460.0,0.00021917,2]
[367099753,1750657843612,-728.71,0.00021917,2]
[367099754,1750657843622,-962.05,0.00021917,2]
[367099755,1750657843631,-460.0,0.00021917,2]
[367099756,1750657843641,-460.0,0.00021917,2]
[367099757,1750657843650,-460.0,0.00021917,2]
[367099758,1750657843660,-164.9369668,0.00021917,2]
[367099759,1750657843670,-460.0,0.00021917,2]
[367099760,1750657843679,-460.0,0.00021917,2]
[367099761,1750657843688,-405.80203136,0.00021917,2]
[367099762,1750657843698,-460.0,0.00021917,2]
[367099763,1750657843707,-573.93,0.00021917,2]
[367099764,1750657843717,-1106.72,0.00021917,2]
[367099765,1750657843727,-460.0,0.00021917,2]
[367099766,1750657843736,-460.0,0.00021917,2]
[367099767,1750657843746,-460.0,0.00021917,2]
[367099768,1750657843755,-460.0,0.00021917,2]
[367099769,1750657843764,-460.17648486,0.00021917,2]
[367099770,1750657843774,-460.0,0.00021917,2]
[367099771,1750657843784,-460.0,0.00021917,2]
[367099772,1750657843793,-662.18,0.00021917,2]
[367099773,1750657843803,-460.0,0.00021917,2]
[367099774,1750657843813,-460.0,0.00021917,2]
[367099775,1750657843823,-580.34,0.00021917,2]
[367099776,1750657843839,-525.83812437,0.00021917,2]
[367099778,1750657843850,-916.42,0.00021917,2]
[367099779,1750657843861,-460.0,0.00021917,2]
[367099781,1750657843871,-460.0,0.00021917,2]
[367099783,1750657843880,-460.0,0.00021917,2]
[367099784,1750657843890,-460.0,0.00021917,2]
[367099785,1750657843901,-460.0,0.00021917,2]
[367099786,1750657843911,-460.0,0.00021917,2]
[367099787,1750657843921,-460.0,0.00021917,2]
[367099788,1750657843931,-588.05506252,0.00021917,2]
[367099789,1750657843941,-561.83,0.00021917,2]
[367099790,1750657843951,-460.0,0.00021917,2]
[367099791,1750657843961,-474.1,0.00021917,2]
[367099792,1750657843971,-460.0,0.00021917,2]
[367099793,1750657843980,-460.0,0.00021917,2]
[367099794,1750657843990,-460.0,0.00021917,2]
[367099795,1750657843999,-962.62,0.00021917,2]
[367099796,1750657844009,-460.0,0.00021917,2]
[367099797,1750657844019,-460.0,0.00021917,2]
[367099798,1750657844028,-460.0,0.00021917,2]
[367099799,1750657844038,-460.0,0.00021917,2]
[367099800,1750657844048,-755.27,0.00021917,2]
[367099801,1750657844058,-3682.36,0.00021917,2]
[367099802,1750657844067,-460.0,0.00021917,2]
[367099803,1750657844081,-460.0,0.00021917,2]
[367099804,1750657844090,-460.0,0.00021917,2]
[367099805,1750657844100,-460.0,0.00021917,2]
[367099806,1750657844110,-460.0,0.00021917,2]
[367099807,1750657844120,-287.46108804,0.00021917,2]
[367099808,1750657844129,-460.80636229,0.00021917,2]
[367099809,1750657844139,-544.7,0.00021917,2]
[367099810,1750657844148,-460.0,0.00021917,2]
[367099811,1750657844158,-460.0,0.00021917,2]
[367099812,1750657844168,-460.0,0.00021917,2]
[367099813,1750657844177,-460.0,0.00021917,2]
[367099814,1750657844187,-559.79089011,0.00021917,2]
[367099815,1750657844196,-460.0,0.00021917,2]
[367099816,1750657844206,-503.3004739,0.00021917,2]
[367099817,1750657844215,-460.0,0.00021917,2]
[367099818,1750657844225,-460.0,0.00021917,2]
[367099819,1750657844234,-460.0,0.00021917,2]
[367099820,1750657844244,-519.03,0.00021917,2]
[367099821,1750657844253,-673.85,0.00021917,2]
[367099822,1750657844263,-460.0,0.00021917,2]
[367099823,1750657844272,-2014.79,0.00021917,2]
[367099824,1750657844281,-460.0,0.00021917,2]
[367099825,1750657844290,-460.0,0.00021917,2]
[367099826,1750657844300,-460.0,0.00021917,2]
[367099827,1750657844310,-460.0,0.00021917,2]
[367099828,1750657844321,-460.18263914,0.00021917,2]
[367099829,1750657844332,-602.72,0.00021917,2]
[367099830,1750657844342,-460.0,0.00021917,2]
[367099831,1750657844351,-602.72,0.00021917,2]
[367099832,1750657844361,-602.72,0.00021917,2]
[367099833,1750657844370,-602.72,0.00021917,2]
[367099834,1750657844379,-602.72,0.00021917,2]
[367099835,1750657844388,-602.72,0.00021917,2]
[367099836,1750657844399,-602.72,0.00021917,2]
[367099837,1750657844409,-460.0,0.00021917,2]
[367099838,1750657844419,-460.0,0.00021917,2]
[367099839,1750657844428,-460.0,0.00021917,2]
[367099840,1750657844438,-154.86319216,0.00021917,2]
[367099841,1750657844448,-460.0,0.00021917,2]
[367099842,1750657844458,-1062.76,0.00021917,2]
[367099843,1750657844467,-460.0,0.00021917,2]
[367099844,1750657844477,-376.82950729,0.00021917,2]
[367099845,1750657844486,-602.72,0.00021917,2]
[367099846,1750657844496,-602.72,0.00021917,2]
[367099847,1750657844505,-602.72,0.00021917,2]
[367099848,1750657844515,-602.72,0.00021917,2]
[367099849,1750657844524,-602.72,0.00021917,2]
[367099850,1750657844534,-602.72,0.00021917,2]
[367099851,1750657844543,-602.72,0.00021917,2]
[367099852,1750657844553,-602.72,0.00021917,2]
[367099853,1750657844562,-402.03869345,0.00021917,2]
[367099854,1750657844572,-602.72,0.00021917,2]
[367099855,1750657844583,-602.72,0.00021917,2]
[367099856,1750657844593,-602.72,0.00021917,2]
[367099857,1750657844602,-460.0,0.00021917,2]
[367099858,1750657844612,-602.72,0.00021917,2]
[367099859,1750657844621,-602.72,0.00021917,2]
[367099860,1750657844631,-602.72,0.00021917,2]
[367099861,1750657844640,-602.72,0.00021917,2]
[367099862,1750657844649,-602.72,0.00021917,2]
[367099863,1750657844659,-460.0,0.00021917,2]
[367099864,1750657844667,-602.90312975,0.00021917,2]
[367099865,1750657844677,-460.0,0.00021917,2]
[367099866,1750657844687,-460.0,0.00021917,2]
[367099867,1750657844696,-460.0,0.00021917,2]
[367099868,1750657844704,-460.0,0.00021917,2]
[367099869,1750657844713,-7524.27,0.00021917,2]
[367099870,1750657844723,-460.0,0.00021917,2]
[367099871,1750657844733,-431.63013999,0.00021917,2]
[367099872,1750657844743,-460.0,0.00021917,2]
[367099873,1750657844752,-460.0,0.00021917,2]
[367099874,1750657844762,-460.0,0.00021917,2]
[367099875,1750657844771,-460.0,0.00021917,2]
[367099876,1750657844780,-460.0,0.00021917,2]
[367099877,1750657844789,-854.93,0.00021917,2]
[367099878,1750657844799,-460.0,0.00021917,2]
[367099879,1750657844808,-5703.44,0.00021917,2]
[367099880,1750657844817,-1108.31,0.00021917,2]
[367099881,1750657844826,-460.0,0.00021917,2]
[367099882,1750657844837,-460.0,0.00021917,2]
[367099883,1750657844850,-1122.71,0.00021917,2]
[367099884,1750657844860,-509.72,0.00021917,2]
[367099885,1750657844870,-460.0,0.00021917,2]
[367099886,1750657844879,-460.0,0.00021917,2]
[367099887,1750657844890,-200.0,0.00021917,10]
[367099888,1750657844899,-460.0,0.00021917,2]
[367099889,1750657844908,-200.0,0.00021917,10]
[367099890,1750657844917,-200.0,0.00021917,10]
[367099891,1750657844927,-460.0,0.00021917,2]
[367099892,1750657844937,-200.0,0.00021917,10]
[367099893,1750657844947,-200.0,0.00021917,10]
[367099894,1750657844956,-460.0,0.00021917,2]
[367099895,1750657844965,-200.0,0.00021917,10]
[367099896,1750657844975,-672.14,0.00021917,2]
[367099897,1750657844984,-460.0,0.00021917,2]
[367099898,1750657844993,-200.0,0.00021917,10]
[367099899,1750657845003,-460.0,0.00021917,2]
[367099900,1750657845013,-553.82954018,0.00021917,2]
[367099901,1750657845023,-200.0,0.00021917,10]
[367099902,1750657845032,-200.0,0.00021917,10]
[367099903,1750657845043,-304.43810238,0.00021917,2]
[367099904,1750657845053,-200.0,0.00021917,10]
[367099905,1750657845062,-200.0,0.00021917,10]
[367099906,1750657845072,-200.0,0.00021917,10]
[367099907,1750657845083,-793.09,0.00021917,2]
[367099908,1750657845093,-200.0,0.00021917,10]
[367099909,1750657845103,-1080.82,0.00021917,2]
[367099910,1750657845112,-200.0,0.00021917,10]
[367099911,1750657845122,-460.0,0.00021917,2]
[367099912,1750657845132,-200.0,0.00021917,10]
[367099913,1750657845141,-7120.0,0.00021917,2]
[367099914,1750657845151,-200.0,0.00021917,10]
[367099915,1750657845160,-460.0,0.00021917,2]
[367099916,1750657845170,-460.0,0.00021917,2]
[367099917,1750657845180,-200.0,0.00021917,10]
[367099918,1750657845190,-200.0,0.00021917,10]
[367099919,1750657845200,-200.0,0.00021917,10]
[367099920,1750657845210,-2105.39,0.00021917,2]
[367099921,1750657845269,-200.0,0.00021917,10]
[367099922,1750657845280,-293.27789331,0.00021917,2]
[367099923,1750657845290,-200.0,0.00021917,10]
[367099924,1750657845300,-200.0,0.00021917,10]
[367099925,1750657845310,-200.0,0.00021917,10]
[367099926,1750657845320,-200.0,0.00021917,10]
[367099927,1750657845331,-460.0,0.00021917,2]
[367099928,1750657845341,-216.705257,0.00021917,10]
[367099929,1750657845350,-460.0,0.00021917,2]
[367099930,1750657845360,-460.0,0.00021917,2]
[367099931,1750657845370,-6051.61,0.00021917,2]
[367099932,1750657845380,-591.24213326,0.00021917,2]
[367099933,1750657845390,-460.0,0.00021917,2]
[367099934,1750657845399,-460.0,0.00021917,2]
[367099935,1750657845409,-460.0,0.00021917,2]
[367099936,1750657845419,-460.0,0.00021917,2]
[367099937,1750657845429,-500.0,0.00021917,2]
[367099938,1750657845439,-460.0,0.00021917,2]
[367099939,1750657845448,-500.0,0.00021917,2]
[367099940,1750657845459,-460.0,0.00021917,2]
[367099941,1750657845468,-500.0,0.00021917,2]
[367099942,1750657845479,-500.0,0.00021917,2]
[367099943,1750657845488,-293.4976075,0.00021917,2]
[367099944,1750657845497,-1316.49,0.00021917,2]
[367099945,1750657845507,-460.0,0.00021917,2]
[367099946,1750657845516,-6282.53,0.00021917,2]
[367099947,1750657845526,-2511.54,0.00021917,2]
[367099948,1750657845535,-460.0,0.00021917,2]
[367099949,1750657845546,-1063.63,0.00021917,2]
[367099950,1750657845557,-460.0,0.00021917,2]
[367099951,1750657845567,-460.0,0.00021917,2]
[367099953,1750657845576,-460.0,0.00021917,2]
[367099954,1750657845587,-460.0,0.00021917,2]
[367099956,1750657845596,-771.33,0.00021917,2]
[367099957,1750657845606,-460.0,0.00021917,2]
[367099958,1750657845618,-460.0,0.00021917,2]
[367099959,1750657845629,-151.0,0.00021917,2]
[367099960,1750657845639,-460.0,0.00021917,2]
[367099961,1750657845648,-460.0,0.00021917,2]
[367099962,1750657845658,-151.0,0.00021917,2]
[367099963,1750657845668,-460.0,0.00021917,2]
[367099964,1750657845678,-460.0,0.00021917,2]
[367099965,1750657845689,-460.0,0.00021917,2]
[367099966,1750657845698,-460.0,0.00021917,2]
[367099967,1750657845707,-460.0,0.00021917,2]
[367099968,1750657845717,-460.0,0.00021917,2]
[367099969,1750657845727,-460.0,0.00021917,2]
[367099970,1750657845737,-460.0,0.00021917,2]
[367099971,1750657845747,-1141.88,0.00021917,2]
[367099972,1750657845756,-460.0,0.00021917,2]
[367099973,1750657845766,-460.0,0.00021917,2]
[367099974,1750657845777,-460.0,0.00021917,2]
[367099975,1750657845786,-458.96573428,0.00021917,2]
[367099976,1750657845796,-460.0,0.00021917,2]
[367099977,1750657845805,-460.0,0.00021917,2]
[367099978,1750657845815,-460.0,0.00021917,2]
[367099979,1750657845825,-460.0,0.00021917,2]
[367099980,1750657845836,-1217.95,0.00021917,2]
[367099981,1750657845846,-2007.95,0.00021917,2]
[367099982,1750657845857,-841.46,0.00021917,2]
[367099983,1750657845867,-460.0,0.00021917,2]
[367099984,1750657845876,-1213.23,0.00021917,2]
[367099985,1750657845886,-460.0,0.00021917,2]
[367099986,1750657845895,-468.9,0.00021917,2]
[367099987,1750657845904,-460.0,0.00021917,2]
[367099988,1750657845913,-472.85,0.00021917,2]
[367099989,1750657845922,-460.0,0.00021917,2]
[367099990,1750657845932,-460.0,0.00021917,2]
[367099991,1750657845943,-460.0,0.00021917,2]
[367099992,1750657845952,-226.58087281,0.00021917,2]
[367099993,1750657845962,-460.0,0.00021917,2]
[367099995,1750657845972,-2335.63,0.00021917,2]
[367099996,1750657845982,-460.0,0.00021917,2]
[367099997,1750657845991,-460.0,0.00021917,2]
[367099998,1750657846000,-460.0,0.00021917,2]
[367099999,1750657846010,-460.0,0.00021917,2]
[367100000,1750657846019,-460.0,0.00021917,2]
[367100001,1750657846029,-518.57,0.00021917,2]
[367100002,1750657846038,-460.0,0.00021917,2]
[367100003,1750657846048,-460.0,0.00021917,2]
[367100004,1750657846057,-864.72,0.00021917,2]
[367100005,1750657846066,-600.08,0.00021917,2]
[367100006,1750657846075,-460.0,0.00021917,2]
[367100007,1750657846087,-1308.89,0.00021917,2]
[367100009,1750657846096,-527.50701064,0.00021917,2]
[367100010,1750657846105,-460.0,0.00021917,2]
[367100011,1750657846115,-840.52,0.00021917,2]
[367100012,1750657846126,-498.57522429,0.00021917,2]
[367100013,1750657846137,-404.62798394,0.00021917,2]
[367100014,1750657846147,-460.0,0.00021917,2]
[367100015,1750657846158,-804.67,0.00021917,2]
[367100017,1750657846168,-460.0,0.00021917,2]
[367100018,1750657846177,-638.91,0.00021917,2]
[367100021,1750657846187,-460.0,0.00021917,2]
[367100022,1750657846197,-460.0,0.00021917,2]
[367100025,1750657846206,-888.91,0.00021917,2]
[367100026,1750657846216,-1436.16,0.00021917,2]
[367100029,1750657846226,-410.0,0.00021917,2]
[367100031,1750657846235,-460.0,0.00021917,2]
[367100033,1750657846244,-1158.93,0.00021917,2]
[367100035,1750657846254,-533.45,0.00021917,2]
[367100036,1750657846263,-553.65,0.00021917,2]
[367100037,1750657846273,-460.0,0.00021917,2]
[367100038,1750657846283,-460.0,0.00021917,2]
[367100039,1750657846293,-460.0,0.00021917,2]
[367100040,1750657846302,-460.0,0.00021917,2]
[367100041,1750657846313,-3124.5,0.00021917,2]
[367100042,1750657846322,-460.0,0.00021917,2]
[367100043,1750657846334,-460.0,0.00021917,2]
[367100044,1750657846343,-460.0,0.00021917,2]
[367100045,1750657846353,-706.2,0.00021917,2]
[367100046,1750657846363,-460.0,0.00021917,2]
[367100047,1750657846372,-460.0,0.00021917,2]
[367100048,1750657846382,-460.0,0.00021917,2]
[367100049,1750657846391,-8911.59,0.00021917,2]
[367100050,1750657846401,-460.0,0.00021917,2]
[367100051,1750657846410,-503.32344317,0.00021917,2]
[367100052,1750657846419,-3653.09,0.00021917,2]
[367100053,1750657846428,-500.0,0.00021917,2]
[367100054,1750657846438,-460.0,0.00021917,2]
[367100055,1750657846447,-495.69,0.00021917,2]
[367100056,1750657846456,-488.56,0.00021917,2]
[367100057,1750657846465,-460.0,0.00021917,2]
[367100058,1750657846474,-460.0,0.00021917,2]
[367100059,1750657846484,-151.0,0.00021917,2]
[367100060,1750657846493,-151.0,0.00021917,2]
[367100061,1750657846502,-460.0,0.00021917,2]
[367100062,1750657846511,-460.0,0.00021917,2]
[367100063,1750657846521,-151.0,0.00021917,2]
[367100064,1750657846530,-460.0,0.00021917,2]
[367100065,1750657846539,-460.0,0.00021917,2]
[367100066,1750657846549,-460.0,0.00021917,2]
[367100067,1750657846560,-460.0,0.00021917,2]
[367100068,1750657846572,-460.0,0.00021917,2]
[367100069,1750657846584,-151.0,0.00021917,2]
[367100070,1750657846595,-1137.59,0.00021917,2]
[367100071,1750657846605,-151.0,0.00021917,2]
[367100072,1750657846614,-460.0,0.00021917,2]
[367100073,1750657846623,-7999.05,0.00021917,2]
[367100074,1750657846633,-786.19,0.00021917,2]
[367100075,1750657846642,-460.0,0.00021917,2]
[367100076,1750657846652,-489.65,0.00021917,2]
[367100077,1750657846661,-460.0,0.00021917,2]
[367100078,1750657846670,-5215.72,0.00021917,2]
[367100079,1750657846680,-543.4,0.00021917,2]
[367100080,1750657846689,-2529.61,0.00021917,2]
[367100081,1750657846698,-460.0,0.00021917,2]
[367100082,1750657846707,-460.0,0.00021917,2]
[367100083,1750657846717,-460.0,0.00021917,2]
[367100084,1750657846726,-460.0,0.00021917,2]
[367100085,1750657846738,-460.0,0.00021917,2]
[367100086,1750657846748,-1209.98,0.00021917,2]
[367100087,1750657846760,-358.6990112,0.00021917,2]
[367100088,1750657846769,-1245.47,0.00021917,2]
[367100089,1750657846779,-840.37,0.00021917,2]
[367100090,1750657846788,-460.0,0.00021917,2]
[367100091,1750657846797,-460.0,0.00021917,2]
[367100092,1750657846806,-169.64197916,0.00021917,2]
[367100093,1750657846815,-460.0,0.00021917,2]
[367100094,1750657846825,-460.0,0.00021917,2]
[367100095,1750657846835,-460.0,0.00021917,2]
[367100096,1750657846845,-460.0,0.00021917,2]
[367100097,1750657846857,-460.0,0.00021917,2]
[367100098,1750657846866,-460.0,0.00021917,2]
[367100099,1750657846876,-1563.98,0.00021917,2]
[367100100,1750657846887,-516.46,0.00021917,2]
[367100101,1750657846896,-460.0,0.00021917,2]
[367100102,1750657846905,-548.05,0.00021917,2]
[367100103,1750657846915,-863.53,0.00021917,2]
[367100104,1750657846925,-460.0,0.00021917,2]
[367100105,1750657846935,-460.0,0.00021917,2]
[367100106,1750657846945,-2202.48,0.00021917,2]
[367100107,1750657846955,-460.0,0.00021917,2]
[367100108,1750657846964,-588.11,0.00021917,2]
[367100109,1750657846974,-500.2,0.00021917,2]
[367100110,1750657846984,-589.89,0.00021917,2]
[367100111,1750657846994,-500.0,0.00021917,2]
[367100112,1750657847003,-460.0,0.00021917,2]
[367100113,1750657847013,-460.0,0.00021917,2]
[367100114,1750657847022,-460.0,0.00021917,2]
[367100115,1750657847031,-460.0,0.00021917,2]
[367100116,1750657847041,-460.0,0.00021917,2]
[367100117,1750657847050,-460.0,0.00021917,2]
[367100118,1750657847060,-460.0,0.00021917,2]
[367100119,1750657847070,-460.0,0.00021917,2]
[367100120,1750657847079,-2965.19,0.00021917,2]
[367100121,1750657847089,-5417.32,0.00021917,2]
[367100122,1750657847099,-460.0,0.00021917,2]
[367100123,1750657847109,-702.29,0.00021917,2]
[367100124,1750657847118,-460.0,0.00021917,2]
[367100125,1750657847127,-460.0,0.00021917,2]
[367100126,1750657847137,-460.0,0.00021917,2]
[367100127,1750657847146,-500.0,0.00021917,2]
[367100128,1750657847156,-460.0,0.00021917,2]
[367100129,1750657847165,-1780.82,0.00021917,2]
[367100130,1750657847174,-460.0,0.00021917,2]
[367100131,1750657847184,-460.0,0.00021917,2]
[367100132,1750657847194,-460.0,0.00021917,2]
[367100133,1750657847203,-460.0,0.00021917,2]
[367100134,1750657847213,-460.0,0.00021917,2]
[367100135,1750657847222,-586.0051348,0.00021917,2]
[367100136,1750657847231,-3213.32,0.00021917,2]
[367100137,1750657847241,-1791.88,0.00021917,2]
[367100138,1750657847250,-1036.85,0.00021917,2]
[367100139,1750657847259,-460.0,0.00021917,2]
[367100140,1750657847269,-6328.16,0.00021917,2]
[367100141,1750657847278,-460.0,0.00021917,2]
[367100142,1750657847287,-536.05,0.00021917,2]
[367100143,1750657847296,-460.0,0.00021917,2]
[367100144,1750657847306,-460.0,0.00021917,2]
[367100145,1750657847315,-810.99,0.00021917,2]
[367100146,1750657847325,-460.0,0.00021917,2]
[367100147,1750657847335,-891.71,0.00021917,2]
[367100148,1750657847344,-460.0,0.00021917,2]
[367100149,1750657847353,-2164.21,0.00021917,2]
[367100150,1750657847362,-460.0,0.00021917,2]
[367100151,1750657847372,-460.0,0.00021917,2]
[367100152,1750657847382,-873.11,0.00021917,2]
[367100153,1750657847391,-460.0,0.00021917,2]
[367100154,1750657847402,-577.37,0.00021917,2]
[367100155,1750657847411,-716.68,0.00021917,2]
[367100156,1750657847421,-460.0,0.00021917,2]
[367100157,1750657847430,-460.0,0.00021917,2]
[367100158,1750657847440,-1431.61,0.00021917,2]
[367100159,1750657847449,-5251.6,0.00021917,2]
[367100160,1750657847459,-1186.29,0.00021917,2]
[367100161,1750657847468,-460.0,0.00021917,2]
[367100162,1750657847478,-678.65,0.00021917,2]
[367100163,1750657847487,-958.78,0.00021917,2]
[367100164,1750657847497,-642.85,0.00021917,2]
[367100165,1750657847506,-460.0,0.00021917,2]
[367100166,1750657847516,-460.0,0.00021917,2]
[367100167,1750657847525,-460.0,0.00021917,2]
[367100168,1750657847535,-460.0,0.00021917,2]
[367100169,1750657847544,-3112.0,0.00021917,2]
[367100170,1750657847554,-1905.8,0.00021917,2]
[367100171,1750657847563,-500.0,0.00021917,2]
[367100172,1750657847573,-803.03,0.00021917,2]
[367100173,1750657847583,-500.0,0.00021917,2]
[367100174,1750657847593,-500.0,0.00021917,2]
[367100175,1750657847603,-500.0,0.00021917,2]
[367100176,1750657847613,-460.0,0.00021917,2]
[367100177,1750657847623,-500.0,0.00021917,2]
[367100178,1750657847632,-500.0,0.00021917,2]
[367100179,1750657847642,-460.0,0.00021917,2]
[367100180,1750657847652,-500.0,0.00021917,2]
[367100181,1750657847661,-500.0,0.00021917,2]
[367100182,1750657847671,-500.0,0.00021917,2]
[367100183,1750657847680,-920.08,0.00021917,2]
[367100184,1750657847690,-460.0,0.00021917,2]
[367100185,1750657847699,-500.0,0.00021917,2]
[367100186,1750657847709,-500.0,0.00021917,2]
[367100187,1750657847718,-500.0,0.00021917,2]
[367100188,1750657847728,-500.0,0.00021917,2]
[367100189,1750657847737,-500.0,0.00021917,2]
[367100190,1750657847747,-500.0,0.00021917,2]
[367100191,1750657847756,-460.0,0.00021917,2]
[367100192,1750657847766,-460.0,0.00021917,2]
[367100193,1750657847776,-500.0,0.00021917,2]
[367100194,1750657847785,-500.0,0.00021917,2]
[367100195,1750657847795,-710.47,0.00021917,2]
[367100196,1750657847805,-623.89917797,0.00021917,2]
[367100197,1750657847814,-1694.06,0.00021917,2]
[367100198,1750657847824,-460.0,0.00021917,2]
[367100199,1750657847834,-460.0,0.00021917,2]
[367100200,1750657847843,-460.0,0.00021917,2]
[367100201,1750657847855,-460.0,0.00021917,2]
[367100202,1750657847864,-21046.28,0.00021917,2]
[367100203,1750657847874,-1285.22,0.00021917,2]
[367100204,1750657847883,-460.0,0.00021917,2]
[367100205,1750657847894,-500.0,0.00021917,2]
[367100206,1750657847903,-1312.23,0.00021917,2]
[367100207,1750657847918,-500.0,0.00021917,2]
[367100208,1750657847933,-500.0,0.00021917,2]
[367100209,1750657847944,-460.0,0.00021917,2]
[367100210,1750657847954,-509.9088642,0.00021917,2]
[367100211,1750657847964,-548.63,0.00021917,2]
[367100212,1750657847974,-1242.54,0.00021917,2]
[367100213,1750657847984,-460.0,0.00021917,2]
[367100214,1750657847993,-460.0,0.00021917,2]
[367100215,1750657848003,-460.0,0.00021917,2]
[367100216,1750657848013,-6845.47,0.00021917,2]
[367100217,1750657848022,-460.0,0.00021917,2]
[367100218,1750657848032,-460.0,0.00021917,2]
[367100219,1750657848041,-460.0,0.00021917,2]
[367100220,1750657848051,-460.0,0.00021917,2]
[367100221,1750657848061,-460.0,0.00021917,2]
[367100222,1750657848071,-460.0,0.00021917,2]
[367100223,1750657848081,-2438.96,0.00021917,2]
[367100224,1750657848091,-460.0,0.00021917,2]
[367100225,1750657848101,-460.0,0.00021917,2]
[367100226,1750657848110,-2768.88,0.00021917,2]
[367100227,1750657848120,-472.49,0.00021917,2]
[367100228,1750657848130,-985.42,0.00021917,2]
[367100229,1750657848140,-460.0,0.00021917,2]
[367100230,1750657848149,-460.0,0.00021917,2]
[367100231,1750657848159,-460.0,0.00021917,2]
[367100232,1750657848168,-460.0,0.00021917,2]
[367100233,1750657848178,-812.13,0.00021917,2]
[367100234,1750657848188,-460.0,0.00021917,2]
[367100235,1750657848198,-460.0,0.00021917,2]
[367100236,1750657848208,-500.0,0.00021917,2]
[367100237,1750657848217,-460.0,0.00021917,2]
[367100238,1750657848227,-460.0,0.00021917,2]
[367100239,1750657848237,-460.0,0.00021917,2]
[367100240,1750657848247,-460.0,0.00021917,2]
[367100241,1750657848256,-831.12,0.00021917,2]
[367100242,1750657848266,-1014.02,0.00021917,2]
[367100243,1750657848276,-1426.45,0.00021917,2]
[367100244,1750657848286,-460.0,0.00021917,2]
[367100245,1750657848296,-1951.89,0.00021917,2]
[367100246,1750657848306,-1483.74,0.00021917,2]
[367100247,1750657848316,-864.72,0.00021917,2]
[367100248,1750657848326,-460.0,0.00021917,2]
[367100249,1750657848336,-460.0,0.00021917,2]
[367100250,1750657848346,-460.0,0.00021917,2]
[367100251,1750657848356,-460.0,0.00021917,2]
[367100252,1750657848366,-460.0,0.00021917,2]
[367100253,1750657848376,-460.0,0.00021917,2]
[367100254,1750657848387,-677.97,0.00021917,2]
[367100255,1750657848396,-460.0,0.00021917,2]
[367100256,1750657848406,-2964.18,0.00021917,2]
[367100257,1750657848416,-809.17,0.00021917,2]
[367100258,1750657848426,-3312.19,0.00021917,2]
[367100259,1750657848436,-460.0,0.00021917,2]
[367100260,1750657848446,-8998.39,0.00021917,2]
[367100261,1750657848455,-151.0,0.00021917,2]
[367100262,1750657848465,-151.0,0.00021917,2]
[367100263,1750657848476,-460.0,0.00021917,2]
[367100264,1750657848486,-158.926812,0.00021918,2]
[367100265,1750657848496,-576.88925919,0.00021918,7]
[367100266,1750657848506,-259.27366954,0.00021918,2]